bitfinex/quotes_BTCUSD_20240819
["timestamp","ask_amount","ask_price","bid_price","bid_amount"]
[1724065890322,2.60200848,58279.0,58278.0,0.00644905]
[1724065890561,2.35254615,58279.0,58278.0,0.00644905]
[1724065890801,2.6001773,58279.0,58278.0,0.00644905]
[1724065891068,2.6001773,58279.0,58249.0,0.14272]
[1724065891069,0.858235,58259.0,58249.0,0.00082]
[1724065891313,1.05173092,58251.0,58250.0,0.1415]
[1724065891552,1.39507192,58251.0,58250.0,0.1415]
[1724065891783,1.39507192,58251.0,58249.0,0.00082]
[1724065891784,0.858367,58250.0,58249.0,0.00082]
[1724065892032,1.36511551,58250.0,58249.0,0.00082]
[1724065892270,1.48044766,58250.0,58249.0,0.00082]
[1724065892516,1.23641819,58250.0,58249.0,0.00082]
[1724065892759,1.30540296,58250.0,58249.0,0.00082]
[1724065892990,1.64874996,58250.0,58249.0,0.00082]
[1724065893219,1.73054996,58250.0,58249.0,0.00082]
[1724065893421,1.9680045,58250.0,58249.0,0.00082]
[1724065893642,2.12444128,58250.0,58249.0,0.00082]
[1724065893847,2.12744128,58250.0,58249.0,0.00082]
[1724065894056,2.16676475,58250.0,58249.0,0.00082]
[1724065894260,2.17076475,58250.0,58249.0,0.00082]
[1724065894571,2.52306475,58250.0,58249.0,0.00082]
[1724065894774,2.51906475,58250.0,58249.0,0.00082]
[1724065894986,2.52106475,58250.0,58249.0,0.00082]
[1724065895239,2.58115941,58250.0,58249.0,0.00082]
[1724065895727,2.4253045,58250.0,58249.0,0.00082]
[1724065895972,2.44250948,58250.0,58249.0,0.00082]
[1724065896226,2.45050948,58250.0,58249.0,0.00082]
[1724065897172,2.38452471,58250.0,58249.0,0.00082]
[1724065897628,2.450462,58250.0,58249.0,0.00082]
[1724065898146,2.57848043,58250.0,58249.0,0.00082]
[1724065898382,2.50103218,58250.0,58249.0,0.00082]
[1724065898804,2.56697477,58250.0,58249.0,0.00082]
[1724065899094,2.14172996,58250.0,58249.0,0.00082]
[1724065899323,1.93433684,58250.0,58249.0,0.00082]
[1724065899555,1.83196025,58250.0,58249.0,0.00082]
[1724065900208,1.88551501,58250.0,58249.0,0.00082]
[1724065900619,1.39346801,58250.0,58249.0,0.00082]
[1724065900821,1.316714,58250.0,58249.0,0.00082]
[1724065901030,1.433509,58250.0,58249.0,0.00082]
[1724065901653,1.316714,58250.0,58249.0,0.00082]
[1724065908121,1.802261,58250.0,58249.0,0.00082]
[1724065912036,1.803261,58250.0,58249.0,0.00082]
[1724065912515,1.805261,58250.0,58249.0,0.00082]
[1724065912716,1.802261,58250.0,58249.0,0.00082]
[1724065913349,1.660061,58250.0,58249.0,0.00082]
[1724065913544,1.316714,58250.0,58249.0,0.00082]
[1724065914576,1.458814,58250.0,58249.0,0.00082]
[1724065914831,1.59300681,58250.0,58249.0,0.00082]
[1724065915002,1.458814,58250.0,58249.0,0.00082]
[1724065917957,1.459814,58250.0,58249.0,0.00082]
[1724065918564,1.461814,58250.0,58249.0,0.00082]
[1724065919215,1.52775931,58250.0,58249.0,0.00082]
[1724065919438,1.69931385,58250.0,58249.0,0.00082]
[1724065919652,1.69631385,58250.0,58249.0,0.00082]
[1724065920595,1.60135931,58250.0,58249.0,0.00082]
[1724065921263,1.52475931,58250.0,58249.0,0.00082]
[1724065924455,1.28265931,58250.0,58249.0,0.00082]
[1724065924658,1.28265931,58250.0,58249.0,0.14082]
[1724065925673,1.28265931,58250.0,58249.0,0.00082]
[1724065927357,1.28265931,58250.0,58249.0,0.14142]
[1724065928955,1.28265931,58250.0,58249.0,0.07832]
[1724065929161,1.28265931,58250.0,58249.0,0.00082]
[1724065929335,1.33376237,58250.0,58249.0,0.00082]
[1724065930273,1.3593139,58250.0,58249.0,0.00082]
[1724065930476,1.0159669,58250.0,58249.0,0.08102]
[1724065931257,0.96706558,58250.0,58249.0,0.08102]
[1724065931458,1.31041258,58250.0,58249.0,0.00082]
[1724065932062,0.96706558,58250.0,58249.0,0.00082]
[1724065932862,1.32969735,58250.0,58249.0,0.00082]
[1724065933240,1.54476712,58250.0,58249.0,0.00082]
[1724065935154,1.54776712,58250.0,58249.0,0.00082]
[1724065935357,1.64371353,58250.0,58249.0,0.00082]
[1724065936742,1.72051353,58250.0,58249.0,0.00082]
[1724065936948,1.72151353,58250.0,58249.0,0.00082]
[1724065937526,1.72051353,58250.0,58249.0,0.00082]
[1724065937737,1.73056778,58250.0,58249.0,0.00082]
[1724065937950,1.73156778,58250.0,58249.0,0.00082]
[1724065938159,1.73056778,58250.0,58249.0,0.00082]
[1724065938389,1.90262756,58250.0,58249.0,0.00082]
[1724065938871,1.73107302,58250.0,58249.0,0.00082]
[1724065939110,1.55860019,58250.0,58249.0,0.00082]
[1724065939348,1.73107302,58250.0,58249.0,0.00082]
[1724065939990,1.55860019,58250.0,58249.0,0.00082]
[1724065940271,1.55960019,58250.0,58249.0,0.00082]
[1724065940544,1.40594594,58250.0,58249.0,0.00082]
[1724065943027,1.40422041,58250.0,58249.0,0.00082]
[1724065944104,1.06087341,58250.0,58249.0,0.00082]
[1724065944344,1.06087341,58250.0,58249.0,0.13882]
[1724065944585,1.06087341,58250.0,58249.0,0.152702]
[1724065944586,0.20291946,58250.0,58249.0,0.152702]
[1724065944828,0.20291946,58250.0,58249.0,0.466478]
[1724065944829,0.04209113,58250.0,58249.0,0.466478]
[1724065945071,0.11786016,58250.0,58249.0,2.31500534]
[1724065945312,0.04209113,58250.0,58249.0,2.31500534]
[1724065945550,0.08412792,58250.0,58249.0,2.31500534]
[1724065945994,0.004,58250.0,58249.0,2.31500534]
[1724065946273,0.004,58250.0,58249.0,1.95777034]
[1724065946514,0.05141806,58250.0,58249.0,1.81747034]
[1724065947004,0.05241806,58250.0,58249.0,2.16382334]
[1724065947247,0.001,58250.0,58249.0,2.16382334]
[1724065947930,0.05141806,58251.0,58250.0,0.65152]
[1724065948460,0.05141806,58252.0,58251.0,0.31507]
[1724065949188,0.05141806,58252.0,58251.0,0.658411]
[1724065949426,0.05141806,58253.0,58252.0,0.653002]
[1724065949667,0.05141806,58255.0,58254.0,0.312762]
[1724065949904,0.05141806,58256.0,58254.0,0.233462]
[1724065950148,0.05141806,58256.0,58255.0,0.0793]
[1724065950845,0.05141806,58256.0,58255.0,0.250959]
[1724065951101,0.05141806,58257.0,58256.0,0.171656]
[1724065951335,0.05141806,58258.0,58257.0,0.0805]
[1724065951613,0.05141806,58259.0,58257.0,0.0805]
[1724065951857,0.05141806,58259.0,58258.0,0.0636]
[1724065952095,0.171647,58259.0,58258.0,0.1455]
[1724065952337,0.22299838,58259.0,58258.0,0.1455]
[1724065952571,0.171647,58259.0,58258.0,0.1455]
[1724065953045,0.514941,58259.0,58258.0,0.1455]
[1724065953285,0.22599838,58259.0,58258.0,0.1455]
[1724065953526,0.177647,58259.0,58258.0,0.1455]
[1724065953762,0.174647,58259.0,58258.0,0.1455]
[1724065956406,0.174647,58259.0,58258.0,0.0819]
[1724065957595,0.17833809,58259.0,58258.0,0.0819]
[1724065957831,0.174647,58259.0,58258.0,0.0819]
[1724065958602,0.52163209,58259.0,58258.0,0.0819]
[1724065963329,0.1792412,58259.0,58258.0,0.0819]
[1724065963574,0.17555011,58259.0,58258.0,0.0819]
[1724065964337,0.00690311,58259.0,58258.0,0.0819]
[1724065964538,0.17855011,58259.0,58258.0,0.0819]
[1724065966423,0.00690311,58259.0,58258.0,0.1447]
[1724065966609,0.17855011,58259.0,58258.0,0.1447]
[1724065967042,0.00690311,58259.0,58258.0,0.1447]
[1724065967357,0.52184411,58259.0,58258.0,0.1447]
[1724065967579,0.00690311,58259.0,58258.0,0.1447]
[1724065970099,0.3538882,58259.0,58255.0,0.0753]
[1724065970336,0.171651,58258.0,58255.0,0.0753]
[1724065970511,0.3538912,58259.0,58255.0,0.0753]
[1724065970512,0.17534409,58257.0,58255.0,0.0753]
[1724065972056,0.00369109,58257.0,58255.0,0.0753]
[1724065972638,0.00469109,58257.0,58255.0,0.0753]
[1724065973035,0.00569109,58257.0,58255.0,0.0753]
[1724065973640,0.002,58257.0,58255.0,0.246959]
[1724065974646,0.173653,58257.0,58255.0,0.0753]
[1724065974846,0.002,58257.0,58255.0,0.0753]
[1724065975693,0.002,58257.0,58255.0,0.076121]
[1724065976105,0.173653,58257.0,58255.0,0.076121]
[1724065976260,0.00369109,58256.0,58255.0,0.076121]
[1724065976809,0.17534709,58256.0,58255.0,0.076121]
[1724065977011,0.86197109,58256.0,58255.0,0.000821]
[1724065977311,0.92398,58256.0,58255.0,0.000821]
[1724065978346,1.267292,58256.0,58255.0,0.001821]
[1724065978554,1.33239066,58256.0,58255.0,0.001821]
[1724065978766,1.461229,58256.0,58255.0,0.001821]
[1724065978972,1.48689817,58256.0,58255.0,0.001821]
[1724065979436,1.40989066,58256.0,58255.0,0.001821]
[1724065979870,1.54575998,58256.0,58255.0,0.001821]
[1724065980091,1.57151943,58256.0,58255.0,0.001821]
[1724065980308,1.67419611,58256.0,58255.0,0.001821]
[1724065980796,1.53832679,58256.0,58255.0,0.001821]
[1724065982646,0.92337866,58256.0,58255.0,0.001821]
[1724065982851,0.97472064,58256.0,58255.0,0.001821]
[1724065983061,0.63140864,58256.0,58255.0,0.001821]
[1724065983343,0.514968,58256.0,58255.0,0.001821]
[1724065984074,0.05134384,58257.0,58255.0,0.0336201]
[1724065984300,0.05134384,58258.0,58256.0,0.247355]
[1724065984536,0.05134384,58258.0,58256.0,0.0757]
[1724065984537,0.06507496,58257.0,58256.0,0.0757]
[1724065985016,0.00090311,58259.0,58258.0,0.17165]
[1724065985285,0.00090311,58259.0,58258.0,0.99485]
[1724065986240,0.00090311,58259.0,58258.0,1.33815]
[1724065986722,0.00090311,58259.0,58258.0,2.93815]
[1724065987868,0.00090311,58259.0,58258.0,2.94215]
[1724065988085,0.00090311,58259.0,58258.0,2.93815]
[1724065988492,0.00190311,58259.0,58258.0,2.93815]
[1724065988907,0.00190311,58259.0,58258.0,2.94415]
[1724065988908,0.00290311,58259.0,58258.0,2.94415]
[1724065996738,0.00290311,58259.0,58258.0,3.13870454]
[1724065998859,0.00290311,58259.0,58258.0,3.48200454]
[1724065999470,0.00290311,58259.0,58258.0,3.48300454]
[1724066000338,0.00190311,58259.0,58258.0,3.48300454]
[1724066000526,0.00090311,58259.0,58258.0,3.47700454]
[1724066000746,0.00190311,58259.0,58258.0,3.47900454]
[1724066000898,0.00290311,58259.0,58258.0,3.49300454]
[1724066001096,0.00090311,58259.0,58258.0,3.47700454]
[1724066001499,0.00290311,58259.0,58258.0,3.49300454]
[1724066002328,0.00290311,58259.0,58258.0,3.49200454]
[1724066005304,0.00290311,58259.0,58258.0,2.97715]
[1724066007476,0.00290311,58259.0,58258.0,3.49200454]
[1724066010893,0.00290311,58259.0,58258.0,3.11905]
[1724066011854,0.00290311,58259.0,58258.0,3.05865]
[1724066012308,0.00290311,58259.0,58258.0,0.97425]
[1724066012711,0.00290311,58259.0,58258.0,0.975071]
[1724066012878,0.00290311,58259.0,58258.0,2.475071]
[1724066013276,0.00190311,58259.0,58258.0,2.473071]
[1724066013663,0.00290311,58259.0,58258.0,2.475071]
[1724066013858,0.00190311,58259.0,58258.0,2.461071]
[1724066014267,0.06650311,58259.0,58258.0,1.684471]
[1724066014605,0.06650311,58259.0,58258.0,2.017771]
[1724066014772,0.06750311,58259.0,58258.0,2.029771]
[1724066015610,0.06650311,58259.0,58258.0,2.017771]
[1724066016012,0.00190311,58259.0,58258.0,2.099071]
[1724066016247,0.00090311,58259.0,58258.0,2.097071]
[1724066016640,0.00190311,58259.0,58258.0,2.099071]
[1724066017111,0.00290311,58259.0,58258.0,2.108071]
[1724066017312,0.00190311,58259.0,58258.0,2.106071]
[1724066017551,0.00190311,58259.0,58258.0,2.099071]
[1724066017726,0.00290311,58259.0,58258.0,2.108071]
[1724066018084,0.00290311,58259.0,58258.0,2.451371]
[1724066020046,0.06440311,58264.0,58263.0,0.171635]
[1724066020248,0.06440311,58264.0,58263.0,0.514906]
[1724066020666,0.06440311,58264.0,58263.0,2.014906]
[1724066021274,0.06440311,58264.0,58263.0,2.019906]
[1724066022024,0.0792,58266.0,58265.0,0.514888]
[1724066022224,0.39451505,58273.0,58265.0,0.343259]
[1724066022225,0.0793,58273.0,58265.0,0.343259]
[1724066022466,0.0793,58273.0,58271.0,0.171611]
[1724066022637,0.0793,58273.0,58267.0,0.343245]
[1724066022638,0.0793,58273.0,58272.0,0.514827]
[1724066023083,0.1431,58273.0,58272.0,0.171609]
[1724066023539,0.640804,58274.0,58271.0,0.171611]
[1724066023771,0.1446,58272.0,58271.0,0.514834]
[1724066025187,0.1446,58272.0,58271.0,0.171611]
[1724066028036,0.1446,58272.0,58269.0,0.343235]
[1724066028240,0.1456,58272.0,58270.0,0.171613]
[1724066028628,0.00369109,58271.0,58269.0,0.171617]
[1724066028835,0.1468,58270.0,58268.0,0.17162]
[1724066029063,0.1468,58270.0,58262.0,0.485176]
[1724066029064,0.15049109,58270.0,58262.0,0.343276]
[1724066029323,0.15049109,58270.0,58259.0,0.48519]
[1724066029324,0.1468,58268.0,58260.0,0.343287]
[1724066029546,0.1468,58263.0,58262.0,0.171638]
[1724066031376,0.1478,58263.0,58262.0,0.003]
[1724066031831,0.32312609,58263.0,58262.0,0.003]
[1724066032272,0.15249109,58263.0,58262.0,0.014]
[1724066032787,0.1488,58263.0,58262.0,0.014]
[1724066034321,0.002,58263.0,58262.0,0.185638]
[1724066034476,0.002,58263.0,58262.0,0.014]
[1724066035116,0.002,58263.0,58262.0,0.01902365]
[1724066035364,0.002,58263.0,58262.0,0.19066165]
[1724066035785,0.002,58263.0,58262.0,0.74350501]
[1724066036005,0.002,58263.0,58262.0,0.67583765]
[1724066036212,0.002,58263.0,58262.0,2.17583765]
[1724066036430,0.002,58263.0,58262.0,1.69066165]
[1724066036595,0.0826,58263.0,58262.0,1.69066165]
[1724066036820,0.143,58263.0,58262.0,1.69066165]
[1724066037382,0.143,58263.0,58262.0,1.51902365]
[1724066038038,0.143,58263.0,58262.0,0.01902365]
[1724066038039,1.143077,58263.0,58262.0,0.01902365]
[1724066038440,1.51349148,58263.0,58262.0,0.01902365]
[1724066038665,1.61626238,58263.0,58262.0,0.01902365]
[1724066039107,1.47336238,58263.0,58262.0,0.00802365]
[1724066039333,1.47236238,58263.0,58262.0,0.00602365]
[1724066039555,1.47336238,58263.0,58262.0,0.00902365]
[1724066039760,1.47336238,58263.0,58262.0,0.00802365]
[1724066040206,1.47236238,58263.0,58262.0,0.00502365]
[1724066040619,1.61526238,58263.0,58262.0,0.00502365]
[1724066041230,1.61426238,58263.0,58262.0,0.00502365]
[1724066041581,1.484348,58263.0,58262.0,0.00502365]
[1724066041784,1.6240883,58263.0,58262.0,0.00502365]
[1724066041991,1.62127661,58263.0,58262.0,0.00502365]
[1724066042309,1.489348,58263.0,58262.0,0.00502365]
[1724066042535,1.52315667,58263.0,58262.0,0.00502365]
[1724066042740,1.52316542,58263.0,58262.0,0.00502365]
[1724066042965,1.52316538,58263.0,58262.0,0.00502365]
[1724066043202,1.494348,58263.0,58262.0,0.00502365]
[1724066044287,1.52810397,58263.0,58262.0,0.00502365]
[1724066044510,1.494348,58263.0,58262.0,0.00502365]
[1724066045188,1.352448,58263.0,58262.0,0.00502365]
[1724066045427,1.42948842,58263.0,58262.0,0.00502365]
[1724066046332,1.352448,58263.0,58262.0,0.00502365]
[1724066046570,1.42948011,58263.0,58262.0,0.00502365]
[1724066046824,1.352448,58263.0,58262.0,0.00502365]
[1724066047017,1.42948543,58263.0,58262.0,0.00502365]
[1724066047228,1.352448,58263.0,58262.0,0.00502365]
[1724066047380,1.4294759,58263.0,58262.0,0.00502365]
[1724066047607,1.352448,58263.0,58262.0,0.00502365]
[1724066048017,1.38627809,58263.0,58262.0,0.00502365]
[1724066048224,1.352448,58263.0,58262.0,0.00502365]
[1724066048427,1.42947569,58263.0,58262.0,0.00502365]
[1724066048626,1.42947532,58263.0,58262.0,0.00502365]
[1724066048848,1.08620448,58263.0,58262.0,0.00502365]
[1724066050519,0.08702748,58263.0,58262.0,0.00502365]
[1724066050706,0.08702748,58263.0,58262.0,0.24018792]
[1724066051050,0.06134719,58263.0,58262.0,0.24018792]
[1724066051230,0.06134719,58263.0,58262.0,1.74018792]
[1724066051860,0.06134719,58263.0,58262.0,1.50502365]
[1724066052072,0.13924719,58263.0,58262.0,1.50502365]
[1724066052278,0.0879,58263.0,58262.0,1.50502365]
[1724066052683,0.0879,58263.0,58262.0,0.00502365]
[1724066052684,0.37418634,58263.0,58262.0,0.00502365]
[1724066053322,0.71745734,58263.0,58262.0,0.00502365]
[1724066055698,0.666106,58263.0,58262.0,0.00502365]
[1724066055856,0.71746736,58263.0,58262.0,0.00502365]
[1724066056289,0.666106,58263.0,58262.0,0.00502365]
[1724066056486,1.009377,58263.0,58262.0,0.00502365]
[1724066057059,1.14662726,58263.0,58262.0,0.00502365]
[1724066057259,1.3871756,58263.0,58262.0,0.00502365]
[1724066057462,1.48989826,58263.0,58262.0,0.00502365]
[1724066058146,1.3871756,58263.0,58262.0,0.00502365]
[1724066058311,1.51557892,58263.0,58262.0,0.00502365]
[1724066058540,1.3871756,58263.0,58262.0,0.00502365]
[1724066058876,1.48990433,58263.0,58262.0,0.00502365]
[1724066060099,1.14663333,58263.0,58262.0,0.00502365]
[1724066060300,1.06861041,58263.0,58262.0,0.00502365]
[1724066062520,1.13455802,58263.0,58262.0,0.00502365]
[1724066065048,1.13420657,58263.0,58262.0,0.00502365]
[1724066067523,1.03147242,58263.0,58262.0,0.00502365]
[1724066068296,1.13420657,58263.0,58262.0,0.00502365]
[1724066068697,1.03147242,58263.0,58262.0,0.00502365]
[1724066068915,1.13420657,58263.0,58262.0,0.00502365]
[1724066069099,1.03147242,58263.0,58262.0,0.00502365]
[1724066069300,1.13420657,58263.0,58262.0,0.00502365]
[1724066069510,0.72763557,58263.0,58262.0,0.11571272]
[1724066069843,0.24758261,58263.0,58262.0,0.00502365]
[1724066070057,0.11019373,58263.0,58262.0,0.00502365]
[1724066070259,0.11019373,58263.0,58262.0,0.80513765]
[1724066070260,0.15300621,58263.0,58262.0,0.80513765]
[1724066070442,0.01090311,58263.0,58262.0,1.14841365]
[1724066070640,0.01090311,58263.0,58262.0,0.80513765]
[1724066071516,0.00090311,58263.0,58262.0,0.14832365]
[1724066071895,0.00190311,58263.0,58262.0,0.25566165]
[1724066072138,0.17353811,58263.0,58262.0,0.00502365]
[1724066072345,0.31465416,58263.0,58262.0,0.00502365]
[1724066072555,0.26744903,58263.0,58262.0,0.00702365]
[1724066072993,0.08078987,58263.0,58262.0,0.01102365]
[1724066073192,0.08078987,58263.0,58262.0,0.00902365]
[1724066073702,0.02977624,58263.0,58262.0,0.01202365]
[1724066073939,0.20141124,58263.0,58262.0,0.01202365]
[1724066074423,0.20136527,58263.0,58262.0,0.01202365]
[1724066074664,0.30417981,58263.0,58262.0,0.01202365]
[1724066075391,0.30048872,58263.0,58262.0,0.01202365]
[1724066075937,0.64745081,58263.0,58262.0,0.01202365]
[1724066076164,0.60969938,58263.0,58262.0,0.01202365]
[1724066076713,0.54553938,58263.0,58262.0,0.01202365]
[1724066077120,0.97111038,58263.0,58262.0,0.01202365]
[1724066077247,1.03617557,58263.0,58262.0,0.01202365]
[1724066077450,1.16469375,58263.0,58262.0,0.01202365]
[1724066077986,1.03617557,58263.0,58262.0,0.01202365]
[1724066078172,1.16469375,58263.0,58262.0,0.01202365]
[1724066078378,1.23099375,58263.0,58262.0,0.01202365]
[1724066079594,1.07870266,58263.0,58262.0,0.01202365]
[1724066080785,0.73543166,58263.0,58262.0,0.01202365]
[1724066080942,0.39216066,58263.0,58262.0,0.07782365]
[1724066082299,0.39216066,58263.0,58262.0,1.57782365]
[1724066082495,0.26364248,58263.0,58262.0,1.57782365]
[1724066082728,0.26364248,58263.0,58262.0,1.51202365]
[1724066083140,0.26364248,58263.0,58262.0,0.01202365]
[1724066083467,0.26366102,58263.0,58262.0,0.01202365]
[1724066086417,0.67612311,58263.0,58262.0,0.01202365]
[1724066086641,1.01570302,58263.0,58262.0,0.01202365]
[1724066087869,1.50087402,58263.0,58262.0,0.01202365]
[1724066088095,1.67471117,58263.0,58262.0,0.01202365]
[1724066088513,1.67471117,58263.0,58262.0,0.01284465]
[1724066088937,1.67471117,58263.0,58262.0,0.00884465]
[1724066089148,1.67271117,58263.0,58262.0,0.00884465]
[1724066089362,1.67371117,58263.0,58262.0,0.00584465]
[1724066089567,1.67171117,58263.0,58262.0,0.00584465]
[1724066090601,1.52981117,58263.0,58262.0,0.00584465]
[1724066091034,1.60035771,58263.0,58262.0,0.00684465]
[1724066091251,1.30147402,58263.0,58262.0,0.00684465]
[1724066091452,1.29947402,58263.0,58262.0,0.00684465]
[1724066091652,1.30547402,58263.0,58262.0,0.00684465]
[1724066092695,1.38797402,58263.0,58262.0,0.00684465]
[1724066092909,1.54255771,58263.0,58262.0,0.00684465]
[1724066093925,1.77751225,58263.0,58262.0,0.00684465]
[1724066094551,1.60595771,58263.0,58262.0,0.00684465]
[1724066095385,1.52345771,58263.0,58262.0,0.00684465]
[1724066097507,1.52876006,58263.0,58262.0,0.00684465]
[1724066098792,1.69886177,58263.0,58262.0,0.00684465]
[1724066099006,1.70086177,58263.0,58262.0,0.00684465]
[1724066100077,1.42048004,58263.0,58262.0,0.00684465]
[1724066100283,1.58911504,58263.0,58262.0,0.00684465]
[1724066100712,1.59211504,58263.0,58262.0,0.00684465]
[1724066101212,1.59125098,58263.0,58262.0,0.00684465]
[1724066101421,1.68926832,58263.0,58262.0,0.00684465]
[1724066101621,1.68717143,58263.0,58262.0,0.00684465]
[1724066103277,1.84160596,58263.0,58262.0,0.00684465]
[1724066103545,1.84460596,58263.0,58262.0,0.00684465]
[1724066103976,2.03344243,58263.0,58262.0,0.00684465]
[1724066104183,2.18787504,58263.0,58262.0,0.00684465]
[1724066104399,2.0898577,58263.0,58262.0,0.00684465]
[1724066104856,2.03455922,58263.0,58262.0,0.00684465]
[1724066105721,2.02855922,58263.0,58262.0,0.00584465]
[1724066106157,2.04255922,58263.0,58262.0,0.00684465]
[1724066106563,2.03655922,58263.0,58262.0,0.00684465]
[1724066106780,2.56538476,58263.0,58262.0,0.00684465]
[1724066107006,2.47383022,58263.0,58262.0,0.00684465]
[1724066107224,2.45983022,58263.0,58262.0,0.00684465]
[1724066107439,2.46883022,58263.0,58262.0,0.00584465]
[1724066107637,2.48283022,58263.0,58262.0,0.00584465]
[1724066107865,2.65438476,58263.0,58262.0,0.00584465]
[1724066108295,2.66838476,58263.0,58262.0,0.00584465]
[1724066108507,2.66373022,58263.0,58262.0,0.00584465]
[1724066108754,3.00700122,58263.0,58262.0,0.00584465]
[1724066108964,3.02100122,58263.0,58262.0,0.00584465]
[1724066109390,2.789172,58260.0,58259.0,0.000821]
[1724066109627,1.044135,58259.0,58258.0,0.000821]
[1724066109845,2.1145766,58259.0,58258.0,0.000821]
[1724066110070,2.65466855,58259.0,58258.0,0.00073891]
[1724066110272,2.70656066,58259.0,58258.0,0.00073891]
[1724066110451,3.04985466,58259.0,58258.0,0.00073891]
[1724066110889,3.06385466,58259.0,58258.0,0.00073891]
[1724066111100,3.06385466,58259.0,58258.0,8e-07]
[1724066111318,2.86895466,58259.0,58258.0,8e-07]
[1724066111518,2.88295466,58259.0,58258.0,8e-07]
[1724066111733,2.89695466,58259.0,58258.0,8e-07]
[1724066111942,2.89695466,58259.0,58255.0,0.000821]
[1724066111943,1.893216,58256.0,58255.0,0.000821]
[1724066112150,2.4455696,58256.0,58255.0,0.000821]
[1724066112569,2.6589696,58256.0,58255.0,0.000821]
[1724066112774,3.0022816,58256.0,58255.0,0.000821]
[1724066113185,3.0022816,58256.0,58255.0,1e-06]
[1724066113420,3.14847652,58256.0,58255.0,1e-06]
[1724066113857,3.14847652,58256.0,58235.0,0.005]
[1724066113858,1.940914,58250.0,58235.0,0.005]
[1724066114081,1.703321,58240.0,58239.0,1e-06]
[1724066114300,2.9229866,58240.0,58239.0,1e-06]
[1724066114519,3.46217545,58240.0,58239.0,1e-06]
[1724066115155,3.2893926,58240.0,58239.0,1e-06]
[1724066115367,2.9459866,58240.0,58239.0,1e-06]
[1724066115577,2.9599866,58240.0,58239.0,1e-06]
[1724066116014,2.50706394,58240.0,58239.0,1e-06]
[1724066116745,2.16576394,58240.0,58239.0,1e-06]
[1724066116959,2.25778612,58240.0,58239.0,1e-06]
[1724066117158,2.31500293,58240.0,58239.0,1e-06]
[1724066117364,2.3254189,58240.0,58239.0,1e-06]
[1724066117566,2.3114189,58240.0,58239.0,1e-06]
[1724066117776,2.2944189,58240.0,58239.0,1e-06]
[1724066117980,2.3084189,58240.0,58239.0,1e-06]
[1724066118184,2.41568683,58240.0,58239.0,1e-06]
[1724066118388,2.77098683,58240.0,58239.0,1e-06]
[1724066118598,2.77069262,58240.0,58239.0,1e-06]
[1724066118820,2.64280995,58240.0,58239.0,1e-06]
[1724066119255,2.64180995,58240.0,58239.0,1e-06]
[1724066119466,2.77068747,58240.0,58239.0,1e-06]
[1724066119679,2.58559357,58240.0,58239.0,1e-06]
[1724066119897,2.68789756,58240.0,58239.0,1e-06]
[1724066120117,2.58559357,58240.0,58239.0,1e-06]
[1724066120321,2.5667109,58240.0,58239.0,1e-06]
[1724066121829,2.47444297,58240.0,58239.0,1e-06]
[1724066122055,2.47644297,58240.0,58239.0,1e-06]
[1724066122471,2.55315514,58240.0,58239.0,1e-06]
[1724066123731,2.62319384,58240.0,58239.0,1e-06]
[1724066123933,2.49531632,58240.0,58239.0,1e-06]
[1724066124277,2.724083,58240.0,58239.0,1e-06]
[1724066124511,2.76910779,58240.0,58239.0,1e-06]
[1724066124781,2.7240822,58240.0,58239.0,1e-06]
[1724066125447,2.77000048,58240.0,58239.0,1e-06]
[1724066125657,2.47734608,58240.0,58239.0,1e-06]
[1724066125906,2.55402047,58240.0,58239.0,1e-06]
[1724066127271,1.96853011,58240.0,58239.0,1e-06]
[1724066127479,1.96553011,58240.0,58239.0,1e-06]
[1724066127685,1.96853011,58240.0,58239.0,1e-06]
[1724066128333,1.95453011,58240.0,58239.0,1e-06]
[1724066128543,1.95153011,58240.0,58239.0,1e-06]
[1724066128755,1.96853011,58240.0,58239.0,1e-06]
[1724066128959,1.95453011,58240.0,58239.0,1e-06]
[1724066129396,1.96853011,58240.0,58239.0,1e-06]
[1724066130008,2.14008465,58240.0,58239.0,1e-06]
[1724066131251,2.64048465,58240.0,58239.0,1e-06]
[1724066131456,2.82138465,58240.0,58239.0,1e-06]
[1724066132094,3.16479065,58240.0,58239.0,1e-06]
[1724066132286,3.18779065,58240.0,58239.0,1e-06]
[1724066132480,3.2750258,58240.0,58239.0,1e-06]
[1724066132912,3.6044318,58240.0,58239.0,1e-06]
[1724066133290,3.2750258,58240.0,58239.0,1e-06]
[1724066133724,3.2470258,58240.0,58239.0,1e-06]
[1724066134135,3.2610258,58240.0,58239.0,1e-06]
[1724066134349,3.2470258,58240.0,58239.0,1e-06]
[1724066134481,3.2750258,58240.0,58239.0,1e-06]
[1724066137863,4.5172258,58240.0,58239.0,1e-06]
[1724066138093,4.6239134,58240.0,58239.0,1e-06]
[1724066138298,4.9673194,58240.0,58239.0,1e-06]
[1724066138476,4.6239134,58240.0,58239.0,1e-06]
[1724066139863,4.9673194,58240.0,58239.0,1e-06]
[1724066140042,4.6239134,58240.0,58239.0,1e-06]
[1724066143603,4.68791254,58240.0,58239.0,1e-06]
[1724066144246,4.142952,58240.0,58239.0,1e-06]
[1724066144463,1.550435,58236.0,58235.0,0.005]
[1724066144680,1.78445017,58236.0,58235.0,0.005]
[1724066144885,1.70767015,58236.0,58235.0,0.005]
[1724066145390,1.82893372,58236.0,58235.0,0.005]
[1724066145628,1.72656461,58236.0,58235.0,0.005]
[1724066145863,1.74056461,58236.0,58235.0,0.005]
[1724066146090,1.868526,58236.0,58235.0,0.005]
[1724066146529,1.882526,58236.0,58235.0,0.005]
[1724066146987,2.05408054,58236.0,58235.0,0.005]
[1724066147645,1.90722469,58236.0,58235.0,0.005]
[1724066147848,1.92613376,58236.0,58235.0,0.005]
[1724066148755,1.93656576,58236.0,58235.0,0.005]
[1724066149225,1.91765669,58236.0,58235.0,0.005]
[1724066150367,2.13746024,58236.0,58235.0,0.005]
[1724066150615,1.9659057,58236.0,58235.0,0.1523]
[1724066150859,1.76504745,58236.0,58235.0,0.1523]
[1724066151103,1.74961545,58236.0,58235.0,0.1523]
[1724066151345,0.20683685,58236.0,58235.0,0.1523]
[1724066151586,0.20683685,58236.0,58235.0,0.32833251]
[1724066151587,0.08523515,58236.0,58235.0,0.32833251]
[1724066151813,0.08523515,58236.0,58235.0,0.15661451]
[1724066151814,0.028,58236.0,58235.0,0.15661451]
[1724066152267,0.199715,58236.0,58235.0,0.15661451]
[1724066152506,0.028,58236.0,58235.0,0.15661451]